Cogmind - Beta 16 @@@ ROGUE MODE // 2025.11.02 @ 17:05:19 Player: Rentaro Result: Destroyed by G-34 Mercenary with Small Laser Performance ------------- Evolutions (0) 0 Regions Visited (1) 200 Robots Destroyed (37) 185 Value Destroyed (706) 706 Prototype IDs (1) 20 Alien Tech Used (0) 0 Bonus (0) 0 TOTAL SCORE: 1111 Bonus ------- None Cogmind --------- Core Integrity 0/250 Matter 285/300 Energy 5/100 System Corruption 4% Temperature Cool (22) Movement Treading (160) Location -10/Materials Parts ------- > --- POWER (1) -------- (None) > --- PROPULSION (2) --- Light Treads > --- UTILITY (2) ------ Small Storage Unit > --- WEAPON (2) ------- Welding Torch > --- INVENTORY (8) ---- Ion Engine Backup Power I Sensor Array Signal Interpreter Seismic Detector ECM Suite Mining Laser Peak State ------------ > --- POWER ------------ Heavy Ion Engine > --- PROPULSION ------- Aluminum Leg Aluminum Leg > --- UTILITY ---------- Small Storage Unit Shield Generator > --- WEAPON ----------- Heavy EM Pulse Gun Heavy EM Pulse Gun > --- INVENTORY -------- Ion Engine Ion Engine Light Treads Light Treads Seismic Detector Hacking Suite Heavy EM Pulse Gun Mining Laser [Rating: 13] Favorites ----------- Power Ion Engine Engine Ion Engine Propulsion Aluminum Leg Treads Light Treads Leg Aluminum Leg Utility Small Storage Unit Device Seismic Detector Storage Small Storage Unit Hackware Hacking Suite Weapon Small Laser Energy Gun Small Laser Special Weapon Mining Laser Impact Weapon Hammer Build | -11 -10 ------- Run | Yrd Mat Slots Evolved . | . . Power . | . . Propulsion . | . . Utility . | . . Weapon . | . . Parts Attached 29 | 9 20 Power 5 | 1 4 Engine 5 | 1 4 Core . | . . Reactor . | . . Propulsion 5 | 2 3 Treads 2 | . 2 Leg 3 | 2 1 Wheel . | . . Hover . | . . Flight . | . . Utility 9 | 3 6 Device 6 | 2 4 Storage 2 | 1 1 Processor . | . . Hackware 1 | . 1 Protection . | . . Artifact . | . . Weapon 10 | 3 7 Energy Gun 7 | 2 5 Energy Cannon . | . . Ballistic Gun . | . . Ballistic Cannon . | . . Launcher . | . . Special Weapon 2 | 1 1 Impact Weapon 1 | . 1 Slashing Weapon . | . . Piercing Weapon . | . . Special Melee Weapon . | . . Unidentified Prototypes 1 | . 1 Corrupted Parts 1 | . 1 System Corruption 4 | . 4 Parts Lost 9 | . 9 Power 1 | . 1 Propulsion 2 | . 2 Utility 2 | . 2 Weapon 4 | . 4 Highest Loss Streak 4 | . 4 To Critical Strikes . | . . Average Backups 7 | 6 7 Power 1 | . 1 Propulsion 2 | 3 1 Utility 2 | . 2 Weapon 1 | 1 1 Tool/Special . | . . Unused Backups 3 | . 3 Power . | . . Propulsion 2 | . 2 Utility 1 | . 1 Weapon . | . . Tool/Special . | . . Average Slot Usage (%) 93 | . 93 Engine 12 | . 12 Treads 14 | . 14 Leg 12 | . 12 Device 11 | . 11 Storage 14 | . 14 Hackware 1 | . 1 Energy Gun 18 | . 18 Impact Weapon 5 | . 5 Peak Build Rating 13 | 9 13 Average Rating 8 | 7 8 On Entrance 4 | . 8 Avg Prop Armor Cover (%) . | . . Naked Turns . | . . Heaviest Build 20 | 13 20 Greatest Support 40 | 20 40 Greatest Overweight (x) 3 | . 3 Average Overweight (x) . | . . Largest Inventory Capacity 25 | 8 25 Average Capacity 7 | 7 8 Most Carried 8 | 8 8 Average Carried 7 | 7 7 Final Capacity 8 | 8 8 Final Carried 8 | 8 7 Class Distribution -------------------- 100% | Mutant Dominant Class ---------------- Mutant | -10/Materials Resources | -11 -10 ----------- Run | Yrd Mat Matter Collected 611 | 320 291 Remotely . | . . Salvage Created 1130 | 265 865 Parts 77 | 26 51 Haulers Intercepted . | . . Recyclers Shooed . | . . Parts Field Recycled . | . . Retrieved Matter . | . . Parts Self-Destructed . | . . Prevented . | . . Parts Restored . | . . Kills | -11 -10 ------- Run | Yrd Mat Combat Hostiles Destroyed 17 | . 17 Melee 6 | . 6 Guns 7 | . 7 AOE 3 | . 3 Classes Destroyed 8 | 3 5 Worker 6 | 3 3 Builder 2 | . 2 Tunneler 6 | 6 . Recycler 2 | 1 1 Operator 1 | . 1 Watcher 3 | . 3 Swarmer 3 | . 3 Grunt 14 | . 14 Best Kill Streak 5 | 2 5 Combat Bots Only 4 | . 4 Max Kills in Single Turn 2 | 1 2 Gunslinging 1 | . 1 Exploded 1 | . 1 Melee 1 | . 1 Uniques/NPCs Destroyed . | . . Combat | -11 -10 -------- Run | Yrd Mat Hostile Shots Fired 134 | . 134 Missed 33 | . 33 Hits 101 | . 101 Projectile 101 | . 101 Damage Taken 1381 | . 1381 Core 250 | . 250 Absorbed by Shields 59 | . 59 Regen/Repaired (Parts) 27 | . 27 Core Remaining (%) 100 | 100 . Volleys Fired 86 | 28 58 Largest 2 | 2 2 Hottest 100 | 100 100 Shots Fired 125 | 51 74 Gun 116 | 46 70 Cannon . | . . Launcher . | . . Special 9 | 5 4 Kinetic . | . . Thermal 57 | 51 6 Explosive . | . . Electromagnetic 68 | . 68 Robot Hit Streak 6 | 5 6 Robot Miss Streak 7 | 3 7 Penetration Max . | . . Secondary Targets 2 | . 2 Max Gunslinging Chain 1 | . 1 Shots Hit Robots 83 | 26 57 Core Hits 34 | 11 23 Critical Kills 3 | . 3 Critical Parts Destroyed 4 | . 4 Critical Strikes 8 | . 8 Corrupt 1 | . 1 Smash 7 | . 7 Melee Attacks 42 | . 42 Impact 42 | . 42 Slashing . | . . Piercing . | . . Sneak Attacks 3 | . 3 Combat Hostiles 1 | . 1 Follow-up Attacks . | . . Damage Inflicted 1884 | 290 1594 Guns 849 | 290 559 Cannons . | . . Explosions 311 | . 311 Melee 676 | . 676 Ramming . | . . Kinetic . | . . Thermal 649 | 290 359 Explosive . | . . Electromagnetic 559 | . 559 Impact 676 | . 676 Slashing . | . . Piercing . | . . Highest Corruption 4 | . 4 Average Corruption 4 | . 4 Corruption Purged . | . . Corruption Blocked . | . . Effects 11 | . 11 Message Errors 3 | . 3 Matter Fused 4 | . 4 Heat Flow Errors 3 | . 3 Misfires 1 | . 1 Overload Shots . | . . Overflow Damage 152 | . 152 Projectiles . | . . Explosions . | . . Melee 152 | . 152 Knockbacks . | . . Impact . | . . Kinetic . | . . Secondary . | . . Self-Inflicted Damage 89 | . 89 Shots 3 | . 3 Rammed . | . . Targets Rammed . | . . Kicked . | . . Crushed . | . . Highest Temperature 264 | 72 264 Average Temperature 56 | 22 77 Received Heat Transfer 552 | . 552 Siege Activations . | . . Martial Activations . | . . Shielding Activations . | . . Robots Disrupted . | . . Combat Hostiles . | . . Robots Corrupted 1 | . 1 Combat Hostiles 1 | . 1 Parts Fried 5 | . 5 Impact Corruptions 7 | . 7 Robots Melted . | . . Combat Hostiles . | . . Parts Melted 1 | 1 . Heat Transferred 1050 | 650 400 Parts Sabotaged . | . . Parts Stolen . | . . Parts Stripped . | . . Power Chain Reactions 4 | . 4 Alert | -11 -10 ------- Run | Yrd Mat Maximum Alert Level . | . . Low Security (%) 100 | 100 100 Level 1 . | . . Level 2 . | . . Level 3 . | . . Level 4 . | . . Level 5 . | . . High Security . | . . Max Security . | . . Peak Influence 141 | 10 141 Initial 3 | . 3 Average 42 | . 62 Influence Increases 618 | 50 568 Destroy 0b10 Robot/C 340 | . 340 Destroy 0b10 Robot/NC 100 | 50 50 Destroy Leader 76 | . 76 Successful Hack 11 | . 11 Disable Machine 60 | . 60 Destroy Structure 16 | . 16 Lose Combat Pursuer 15 | . 15 Influence Decreases 578 | 45 533 Entered New Map 2 | . 2 Time Decay 363 | 45 318 Lost Part 90 | . 90 Purge Threat 123 | . 123 Squads Dispatched 5 | . 5 Investigation 3 | . 3 Extermination . | . . Reinforcement 2 | . 2 Assault . | . . Garrison . | . . Intercept . | . . Searches Triggered . | . . Construction Impeded . | . . Haulers Reinforced . | . . Active Scanning Responses . | . . Cargo Convoy Interrupts . | . . Stealth | -11 -10 --------- Run | Yrd Mat Distress Signals . | . . Communications Jammed . | . . Distress Signals . | . . Times Spotted 30 | . 30 Peak Tracking Total 5 | . 5 Tactical Retreats 1 | . 1 Traps | -11 -10 ------- Run | Yrd Mat Traps Triggered 1 | . 1 Indirectly . | . . Trap Hack Attempts . | . . Triggered . | . . Disarmed . | . . Reprogrammed . | . . Reused . | . . Traps Extracted . | . . Installed . | . . Triggered . | . . Machines | -11 -10 ---------- Run | Yrd Mat Machines Disabled 4 | . 4 Max in Single Turn 1 | . 1 Machines Repaired . | . . Machines Dismantled . | . . Machines Sabotaged . | . . Overloaded Fab Kills . | . . Hacking | -11 -10 --------- Run | Yrd Mat Machines Accessed 5 | . 5 Terminals 3 | . 3 Fabricators . | . . Repair Stations 1 | . 1 Recycling Units 1 | . 1 Scanalyzers . | . . Garrison Access . | . . Total Hacks 21 | . 21 Successful 14 | . 14 Failed 7 | . 7 Catastrophic . | . . Database Lockouts . | . . Manual 6 | . 6 Terminals 10 | . 10 Fabricators . | . . Repair Stations 6 | . 6 Recycling Units 5 | . 5 Scanalyzers . | . . Garrison Access . | . . Terminal Hacks 6 | . 6 Record 3 | . 3 Alert Level 1 | . 1 Unreport Threat 1 | . 1 Locate Traps 1 | . 1 Fabricator Hacks . | . . Repair Station Hacks 3 | . 3 Scan Component 1 | . 1 Repair 1 | . 1 Refit 1 | . 1 Recycling Unit Hacks 4 | . 4 Process 1 | . 1 Report Inventory 1 | . 1 Retrieve Components 2 | . 2 Scanalyzer . | . . Garrison Access Hacks . | . . Unauthorized Hacks 1 | . 1 Terminals 1 | . 1 Botnet 1 | . 1 Fabricators . | . . Repair Stations . | . . Recycling Units . | . . Scanalyzers . | . . Garrison Access . | . . Data Cores Recovered . | . . Used . | . . Hacking Detections 5 | . 5 Full Trace Events 3 | . 3 Feedback Events . | . . Feedback Blocked . | . . Robot Schematics Acquired . | . . Robots Built . | . . Authchips . | . . Time . | . . Total Robot Build Rating . | . . Part Schematics Acquired . | . . Parts Built . | . . Authchips . | . . Time . | . . Total Part Build Rating . | . . Part Studies Acquired . | . . Parts Repaired 1 | . 1 Time 32 | . 32 Parts Recycled . | . . Recycled Matter 231 | . 231 Retrieved Matter . | . . Retrieved Components . | . . Parts Scanalyzed . | . . Part Schematics Acquired . | . . Parts Damaged . | . . Bothacking | -11 -10 ------------ Run | Yrd Mat Used RIF Installer . | . . Robots Hacked . | . . Non-combat . | . . Combat . | . . Robot Hacks Applied . | . . Relay Couplers Released . | . . Fabnet Peak Effective % . | . . Robots Rewired . | . . Allies Hacked . | . . Hacks Repelled . | . . Allies | -11 -10 -------- Run | Yrd Mat Total Allies . | . . Largest Group . | . . Highest-Rated Group . | . . Highest-Rated Ally . | . . Total Orders . | . . Ally Attacks . | . . Total Damage . | . . Kills . | . . Allies Corrupted . | . . Allies Melted . | . . Intel | -11 -10 ------- Run | Yrd Mat Active Infowar (turns) 966 | 317 649 Sensors 299 | . 299 Terrain 140 | 140 . Seismic 514 | 177 337 ECM 13 | . 13 Robot Analysis Total . | . . Derelict Logs Recovered . | . . Drone Launches . | . . Drone Recoveries . | . . Exploration | -11 -10 ------------- Run | Yrd Mat Turns Passed 1690 | 555 1135 Spaces Moved 750 | 227 523 Core 9 | 8 1 Treads 235 | . 235 Legs 506 | 219 287 Wheels . | . . Hover . | . . Flight . | . . Fastest Speed 50 | 50 120 Average Speed 133 | 117 139 Slowest Speed 200 | 120 200 Overloaded Moves . | . . Propulsion Burnouts . | . . Robots Hopped . | . . Potential Cave-ins . | . . Cave-ins Triggered 1 | . 1 Exploration Rate (%) 47 | 15 79 Regions Visited 1 Branch Regions . Pre-discovered Areas . | . . Known Exits Taken . | . . Unknown Exits Taken 1 | 1 . Scrap Searched . | . . Spaces Dug 8 | 5 3 Terrain Destroyed 18 | 5 13 Melee 3 | . 3 Projectile 6 | 5 1 AOE 9 | . 9 Terrain Rammed . | . . Walls Destroyed . | . . Machines Disabled . | . . Actions | -11 -10 --------- Run | Yrd Mat Total 1222 | 451 771 Wait 266 | 171 95 Move 749 | 226 523 Hop . | . . Pick Up 19 | 10 9 Fast Attach 12 | 7 5 Attach 8 | 3 5 Detach 4 | 2 2 Swap 22 | 2 20 Drop 14 | 2 12 Fire 86 | 28 58 Melee 42 | . 42 Ram . | . . Kick . | . . Crush . | . . Escape Stasis . | . . Rewire . | . . Trap . | . . Miscellaneous . | . . Route ------- -11/Scrapyard -10/Materials (discovered 3 exits: [*Mat x2] / [*Min]) History --------- Turn | Location | Event 4 | -11/Scrapyard | Discovered new exit (range 15) 556 | -11/Scrapyard | Entered Materials 557 | -10/Materials | Build established: Mutant 841 | -10/Materials | Discovered new exit (range 13) 842 | -10/Materials | Discovered new exit (range 10) 1058 | -10/Materials | Lost 4 parts (1n1u2w) 1308 | -10/Materials | Repaired Hvy. EM Pulse Gun 1364 | -10/Materials | Crushed by falling debris 1364 | -10/Materials | Core integrity fell below 50% 1532 | -10/Materials | Discovered new exit (range 16) 1667 | -10/Materials | Core integrity fell below 20% 1691 | -10/Materials | Destroyed by G-34 Mercenary with Small Laser Last Messages --------------- Wheel (11) Aluminum Leg (33) ECM Suite (10) Sml. Laser (32) Lgt. Ion Engine (12) Corrupted Aluminum Leg (31) Sml. Laser (7) Aluminum Leg (40) >>Recycling(Report) Matter reserves: 349 Inventory: Empty 01641_ ALERT: Suspicious activity at Recycling Unit M002. Dispatching Investigation squad. 01642_ Recycling unit begins matter transfer process. 01662_ K-01 Serf cleans the Recycling Unit. 01668_ Hvy. EM Pulse Gun destroyed. 01670_ Lgt. Treads destroyed. 01670_ K-01 Serf cleans the Recycling Unit. 01674_ Hammer destroyed. 01688_ Hacking Suite destroyed. Map ----- +----------------------------------------------------+ | ???# #??????? ## ^ #????????????? | | #### #???????? ## #????????????? | | + #???????? ?# #????????????? | | "" #####/#######???????????# ^ #????????????? | | "" # #??????????????# #????????????" | | "" # = #????????? ??#^ """ % #???????????? | | # #???????? ??# """ ########?####+ | | #### #????????# ??# """ # #?# | | + *% #????????# ?## # " [#?# | | #### ! #????????# ## +% #?# | | #??# [ #????????# ## # #?# # | | #??# #???????## ## ^ *# #?# # | | ???# #????##?# # + ** #?# # | | ???####"T"###????# # # ########?# # | | #?????#"""#???????? + # !!! ""#??????# # | | ##????#####?????????# # !!! T"#??????# # | | "#??????????????????# # ! "#?????## # | | "#???????????????????# ######### * | | "#???????????????????# % | | T#???????????????????# | | "#???????????????????# % | | "#???????????????##### ############### % | | "#???????????????#"""##%### #?######??????###+## | | ##??????????????##"Y"##+### #? #??????# =% | | #???????????????# % g # # #??????# ! | | #???????????????# % @#* # """ #??????# | | #???????????????# ! = !g% + """ #??????# | | ????????????????# =;[ # """ #??????#! | | ????????????????########### # |#??????# | | ?????????????????????????## ########??????# | | ?????????????????????????# ######???????#####" | | ?????????????????????????# t ????#" | | ?????????????????????????+ T